[Event "Biel Festival Masters Blitz 2024"]
[White "Mishra,Abhimanyu"]
[Black "Shankland,Sam"]
[Site "Biel"]
[Round "10.1"]
[Annotator "TA"]
[Result "1/2-1/2"]
[Date "2024.07.21"]
[WhiteElo "2627"]
[BlackElo "2683"]
[PlyCount "147"]
[TimeControl "180+2"]

{[%evp 71,147,-39,-38,-42,-32,-24,-32,-131,-65,-121,-121,-151,-19,-329,-224,-196,-72,-121,-113,-748,-687,-803,-745,-795,-795,-1576,-869,-5341,-5179,-2971,-188,-188,-188,-188,-162,-162,-162,-162,-162,-162,-162,-162,-162,-162,-162,-162,-162,-162,-162,-162,-162,-162,-162,-162,-162,-162,-162,-162,-162,-162,-162,-162,-162,-162,-162,-162,-162,-162,-162,-162,-162,-162,-162,-162,-162,-162,-162,-162]} 1. e4 {[%emt 0:0:1]} c5 {[%emt 0:0:2]} 2. Nf3 {[%emt 0:0:1]} d6 {[%emt 0:0:1]} 3. d4 {[%emt 0:0:1]} cxd4 {[%emt 0:0:1]} 4. Nxd4 {[%emt 0:0:1]} Nf6 {[%emt 0:0:1]} 5. Nc3 {[%emt 0:0:1]} Nc6 {[%emt 0:0:1]} 6. Bg5 {[%emt 0:0:1]} Bd7 {[%emt 0:0:1]} 7. Qd2 {[%emt 0:0:2]} Rc8 {[%emt 0:0:4]} 8. O-O-O {[%emt 0:0:4]} Nxd4 {[%emt 0:0:1]} 9. Qxd4 {[%emt 0:0:2]} Qa5 {[%emt 0:0:8]} 10. f4 {[%emt 0:0:8]} h6 {[%emt 0:0:0]} 11. Bxf6 {[%emt 0:0:7]} gxf6 {[%emt 0:0:0]} 12. Kb1 {[%emt 0:0:3]} Qc5 {[%emt 0:0:0]} 13. Qd3 {[%emt 0:0:1]} h5 {[%emt 0:0:0]} 14. f5 {[%emt 0:0:36]} Bh6 {[%emt 0:0:4]} 15. Qf3 {[%emt 0:0:4]} h4 {[%emt 0:0:26]} 16. Bb5 {[%emt 0:0:7]} Bxb5 {[%emt 0:0:12]} 17. Rd5 {[%emt 0:0:1]} Qe3 {[%emt 0:0:2]} 18. Qxe3 {[%emt 0:0:21]} Bxe3 {[%emt 0:0:1]} 19. Rxb5 {[%emt 0:0:2]} b6 {[%emt 0:0:7]} 20. Nd5 {[%emt 0:0:28]} Bd4 {[%emt 0:0:1]} 21. Rd1 {[%emt 0:0:5]} Be5 {[%emt 0:0:4]} 22. h3 {[%emt 0:0:1]} Rg8 {[%emt 0:0:3]} 23. Rd2 {[%emt 0:0:0]} e6 {[%emt 0:0:15]} 24. Nb4 {[%emt 0:0:17]} Rc4 {[%emt 0:0:53]} 25. Re2 {[%emt 0:0:4]} exf5 {[%emt 0:0:5]} 26. exf5 {[%emt 0:0:4]} Rf4 {[%emt 0:0:0]} 27. a4 {[%emt 0:0:5]} Rf1+ {[%emt 0:0:12]} 28. Ka2 {[%emt 0:0:2]} Rg1 {[%emt 0:0:1]} 29. a5 {[%emt 0:0:25]} R1xg2 {[%emt 0:0:6]} 30. Rxg2 {[%emt 0:0:5]} Rxg2 {[%emt 0:0:0]} 31. axb6 {[%emt 0:0:4]} axb6 {[%emt 0:0:1]} 32. Rxb6 {[%emt 0:0:3]} Rh2 {[%emt 0:0:6]} 33. Nd5 {[%emt 0:0:14]} Rxc2 {[%emt 0:0:17]} 34. Rb8+ {[%emt 0:0:1]} Kd7 {[%emt 0:0:1]} 35. Rb7+ {[%emt 0:0:1]} Kc8 {[%emt 0:0:5]} 36. Rxf7 {[%emt 0:0:11]} Rxb2+ {[%emt 0:0:1]} 37. Ka3 {[%emt 0:0:1]} Rf2 {[%emt 0:0:5]} 38. Kb4 {[%emt 0:0:10]} Kd8 {[%emt 0:0:23]} (38... Rxf5 $2 39. Ne7+ Kd7 40. Nxf5+ $18 )39. Rf8+ {[%emt 0:0:6]} Kd7 {[%emt 0:0:1]} 40. Nxf6+ {[%emt 0:0:1]} (40. Rg8 $1 $15 )Ke7 $17 {[%emt 0:0:5]} 41. Nh7 {[%emt 0:0:1]} Bg7 {[%emt 0:0:2]} (41... Rf4+ $1 $17 42. Kb3 d5 )42. f6+ $2 {[%emt 0:0:5][%mdl 8192]} (42. Rc8 $11 Rf4+ (42... Rxf5 43. Rc7+ Ke6 44. Rxg7 $11 )43. Kb3 )Bxf6 {[%emt 0:0:3]} 43. Kc4 {[%emt 0:0:3] [#]} Rc2+ {[%emt 0:0:6]} (43... Rf5 $1 $19 {[%cal Rf5c5] und Schwarz behält klar die Oberhand. ...Rc5+ wäre nun fies.} 44. Kd3 Ke6 45. Nxf6 Rxf6 )44. Kd3 {[%emt 0:0:3] [#]} (44. Kd5 $142 )Rc3+ $1 $17 {[%emt 0:0:2]} 45. Kd2 $2 {[%emt 0:0:1][%mdl 8192]} (45. Ke2 $17 )Be5 $19 {[%emt 0:0:5]} 46. Rf5 {[%emt 0:0:5]} Rxh3 {[%emt 0:0:0]} 47. Ng5 {[%emt 0:0:0]} Rg3 {[%emt 0:0:0]} 48. Nf3 {[%emt 0:0:5]} h3 {[%emt 0:0:5]} 49. Nxe5 {[%emt 0:0:1]} Ke6 $1 {[%emt 0:0:9]} ({Lieber nicht} 49... dxe5 50. Rxe5+ Kf7 51. Rh5 $11 )50. Rf3 {[%emt 0:0:2]} h2 $2 {[%emt 0:0:1]} (50... Rg2+ 51. Ke3 h2 (51... Kxe5 52. Rxh3 Rg5 53. Kd2 $11 ))51. Rxg3 $19 {[%emt 0:0:2]} h1=Q {[%emt 0:0:2]} ({Schwächer ist} 51... h1=R 52. Nd3 $16 )52. Nf3 {[%emt 0:0:1]} Kf5 {[%emt 0:0:2]} 53. Nd4+ {[%emt 0:0:3]} Kf4 {[%emt 0:0:2]} 54. Ne2+ {[%emt 0:0:1]} Ke5 {[%emt 0:0:3]} 55. Re3+ {[%emt 0:0:1]} Kd5 {[%emt 0:0:0]} 56. Rd3+ {[%emt 0:0:1]} Kc6 {[%emt 0:0:0]} 57. Rc3+ {[%emt 0:0:1]} Kd7 {[%emt 0:0:1]} 58. Rc4 {[%emt 0:0:3]} Qh2 {[%emt 0:0:7]} 59. Rd4 {[%emt 0:0:2]} Qe5 {[%emt 0:0:3]} 60. Rf4 {[%emt 0:0:1]} d5 {[%emt 0:0:2]} 61. Rd4 {[%emt 0:0:2]} Kd6 {[%emt 0:0:1]} 62. Rf4 {[%emt 0:0:0]} Kc5 {[%emt 0:0:2]} 63. Kd1 {[%emt 0:0:4]} Qe3 {[%emt 0:0:3]} 64. Ke1 {[%emt 0:0:2]} Kd6 {[%emt 0:0:6]} 65. Kf1 {[%emt 0:0:3]} Ke5 {[%emt 0:0:1]} 66. Ra4 {[%emt 0:0:1]} Qd2 {[%emt 0:0:3]} 67. Rg4 {[%emt 0:0:3]} Qc2 {[%emt 0:0:5]} 68. Rh4 {[%emt 0:0:6]} Qf5+ {[%emt 0:0:1]} 69. Ke1 {[%emt 0:0:1]} Qb1+ {[%emt 0:0:2]} 70. Kf2 {[%emt 0:0:1]} Qb6+ {[%emt 0:0:1]} 71. Ke1 {[%emt 0:0:2]} Qf6 {[%emt 0:0:2]} 72. Ra4 {[%emt 0:0:1]} Qf3 {[%emt 0:0:2]} 73. Rb4 {[%emt 0:0:2]} Qe3 {[%emt 0:0:2]} 74. Ra4 {[%emt 0:0:1]} 1/2-1/2

[Event "Biel Festival Masters Blitz 2024"]
[White "Le,Quang Liem"]
[Black "Praggnanandhaa R"]
[Site "Biel"]
[Round "10.2"]
[Annotator "TA"]
[Result "1/2-1/2"]
[Date "2024.07.21"]
[WhiteElo "2731"]
[BlackElo "2747"]
[PlyCount "77"]
[TimeControl "180+2"]

{[%evp 10,77,33,25,22,20,21,24,25,19,29,14,25,31,33,14,23,27,16,24,31,15,27,19,22,25,64,50,82,20,83,23,53,58,44,44,44,47,29,0,0,-15,-14,-13,0,0,22,0,0,0,0,0,0,0,15,0,0,0,0,-44,0,-4,0,0,0,-14,0,0,0,0]} 1. c4 {[%emt 0:0:1]} Nf6 {[%emt 0:0:1]} 2. Nf3 {[%emt 0:0:2]} e6 {[%emt 0:0:3]} 3. d4 {[%emt 0:0:4]} Bb4+ {[%emt 0:0:2]} 4. Bd2 {[%emt 0:0:1]} Qe7 {[%emt 0:0:2]} 5. g3 {[%emt 0:0:2]} Bxd2+ {[%emt 0:0:1]} 6. Qxd2 {[%emt 0:0:1]} Nc6 {[%emt 0:0:1]} 7. b3 {[%emt 0:0:2]} d5 {[%emt 0:0:11]} 8. Bg2 {[%emt 0:0:6]} O-O {[%emt 0:0:3] White has an edge.} 9. O-O {[%emt 0:0:1]} dxc4 {[%emt 0:0:1]} 10. bxc4 {[%emt 0:0:2]} e5 {[%emt 0:0:1]} 11. d5 {[%emt 0:0:10]} Nb8 {[%emt 0:0:1]} 12. Qc3 {[%emt 0:0:28]} Re8 {[%emt 0:0:10]} 13. Qa3 {[%emt 0:0:12]} Qxa3 {[%emt 0:0:28]} 14. Nxa3 {[%emt 0:0:1][%cal Bb1a3,Ba3b5,Bb5d6][%mdl 32]} Na6 {[%emt 0:0:1]} 15. Rfd1 {[%emt 0:0:36]} Bd7 {[%emt 0:0:2]} 16. Nd2 {[%emt 0:0:7]} Ba4 {[%emt 0:0:14]} 17. Nb3 {[%emt 0:0:4]} Nd7 {[%emt 0:0:4][%cal Bf6d7,Bd7c5,Bc5a4,Ba4b6,Bb6d5][%mdl 32]} 18. Nb5 {[%emt 0:0:14]} g6 {[%emt 0:0:37]} 19. Rac1 {[%emt 0:0:10]} (19. Rab1 $16 )Rec8 {[%emt 0:0:24]} (19... e4 $11 )20. Rd2 {[%emt 0:0:12] White is more active.} (20. Nc3 $16 Bxb3 21. axb3 )Nac5 {[%emt 0:0:18]} 21. Nxc5 {[%emt 0:0:1]} Nxc5 {[%emt 0:0:1]} 22. d6 {[%emt 0:0:3]} cxd6 {[%emt 0:0:29]} 23. Nxd6 {[%emt 0:0:6]} Rc7 {[%emt 0:0:2]} 24. Rb2 {[%emt 0:0:9][%cal Bd2b2,Bb2b4,Bb4a4][%mdl 32]} Bc6 {[%emt 0:0:3]} 25. Nb5 {[%emt 0:0:28]} Rd7 {[%emt 0:0:2]} 26. Bd5 {[%emt 0:0:5]} Na4 {[%emt 0:0:12]} 27. Rb4 {[%emt 0:0:12]} Nb6 {[%emt 0:0:1]} 28. Bxc6 {[%emt 0:0:2]} bxc6 {[%emt 0:0:1]} 29. Nc3 {[%emt 0:0:3]} Rad8 {[%emt 0:0:15]} 30. c5 {[%emt 0:0:7]} Nd5 {[%emt 0:0:1]} 31. Ra4 {[%emt 0:0:1]} Nf6 {[%emt 0:0:5]} 32. Ra6 {[%emt 0:0:5]} Rc7 {[%emt 0:0:1]} 33. f3 {[%emt 0:0:4]} Rd4 {[%emt 0:0:1]} 34. Ra4 {[%emt 0:0:4] Wards off Rc4} Kg7 {[%emt 0:0:6]} 35. Kf2 {[%emt 0:0:2] The position is equal.} Rcd7 {[%emt 0:0:2]} 36. Ra6 {[%emt 0:0:2]} Rc7 {[%emt 0:0:4]} 37. Ra4 {[%emt 0:0:1] Prevents Rc4.} Rcd7 {[%emt 0:0:1]} 38. Ra6 {[%emt 0:0:0]} Rc7 {[%emt 0:0:3]} 39. Ra4 {[%emt 0:0:13] Wards off Rc4.   Weighted Error Value: White=0.12 (very precise) /Black=0.11 (very precise) .  Mistake:       	White=2     	Black=1      Inaccurate:     	White=2     	Black=4      OK:         	White=19    	Black=12} 1/2-1/2

[Event "Biel Festival Masters Blitz 2024"]
[White "Keymer,Vincent"]
[Black "Martirosyan,Haik M."]
[Site "Biel"]
[Round "10.3"]
[Annotator "TA"]
[Result "1/2-1/2"]
[Date "2024.07.21"]
[WhiteElo "2721"]
[BlackElo "2662"]
[PlyCount "41"]
[TimeControl "180+2"]

{[%evp 17,41,0,25,0,5,-6,12,20,25,13,14,-7,8,0,0,-14,0,-33,0,-32,0,0,0,-25,0,0]} 1. d4 {[%emt 0:0:1]} Nf6 {[%emt 0:0:1]} 2. c4 {[%emt 0:0:1]} e6 {[%emt 0:0:1]} 3. Nc3 {[%emt 0:0:1]} Bb4 {[%emt 0:0:1]} 4. f3 {[%emt 0:0:0]} d5 {[%emt 0:0:10]} 5. a3 {[%emt 0:0:1]} Bxc3+ {[%emt 0:0:18]} 6. bxc3 {[%emt 0:0:1]} c5 {[%emt 0:0:27]} 7. cxd5 {[%emt 0:0:2]} Nxd5 {[%emt 0:0:2]} 8. dxc5 {[%emt 0:0:4]} Qa5 {[%emt 0:0:1]} 9. e4 {[%emt 0:0:2]} Ne7 {[%emt 0:0:4]} ({Don't play} 9... Nxc3 10. Qd2 Nc6 11. Bb2 $16 )10. Be3 {[%emt 0:0:11]} O-O {[%emt 0:0:3]} 11. h4 {[%emt 0:0:4]} Rd8 {[%emt 0:0:10]} 12. Qb3 {[%emt 0:0:6]} Qc7 {[%emt 0:0:6]} 13. h5 {[%emt 0:0:7]} h6 {[%emt 0:0:2]} 14. Bb5 {[%emt 0:0:9]} Nd7 {[%emt 0:0:19]} 15. Bxd7 {[%emt 0:0:7]} Bxd7 {[%emt 0:0:2]} 16. Ne2 {[%emt 0:0:17]} Nc6 {[%emt 0:0:1][%mdl 1024] Black has compensation.} 17. Nf4 {[%emt 0:0:22]} Na5 {[%emt 0:0:13]} 18. Qb4 {[%emt 0:0:1]} Nc6 {[%emt 0:0:8]} 19. Qb3 {[%emt 0:0:11]} Na5 {[%emt 0:0:1]} 20. Qb4 {[%emt 0:0:6]} Nc6 {[%emt 0:0:7]} 21. Qb3 {[%emt 0:0:14] A rather calm draw.   Weighted Error Value: White=0.07 (flawless) /Black=0.10 (very precise) .  Inaccurate:     	White=1     	---        OK:         	White=6     	Black=3} 1/2-1/2